bitfinex-derivatives/quotes_ETHF0:USTF0_20250624
["timestamp","ask_amount","ask_price","bid_price","bid_amount"]
[1750772848393,0.8884915,2423.9,2423.7,0.82479]
[1750772848784,0.0637515,2423.9,2423.5,3.2078]
[1750772849096,0.82484,2423.6,2423.5,3.2078]
[1750772850395,3.8993,2423.8,2423.5,3.2078]
[1750772850596,1.8708,2423.8,2423.5,3.2078]
[1750772850893,0.82484,2423.6,2423.5,3.2078]
[1750772851194,0.82484,2423.7,2423.5,4.03267]
[1750772851583,2.6956,2423.8,2423.6,0.82483]
[1750772851788,0.82481,2423.7,2423.5,4.03266]
[1750772852296,2.6956,2423.8,2423.5,4.03266]
[1750772852494,2.6956,2423.8,2423.6,0.82484]
[1750772853188,0.82484,2423.6,2423.5,3.2078]
[1750772853388,2.1256715,2423.9,2423.5,4.03268]
[1750772853593,0.82484,2423.6,2423.5,3.2078]
[1750772853897,4.1334715,2423.9,2423.5,4.03267]
[1750772854197,0.82483,2423.7,2423.5,4.03267]
[1750772854398,0.82484,2423.7,2423.5,4.03268]
[1750772854792,0.82484,2423.6,2423.5,3.2078]
[1750772854995,0.82484,2423.7,2423.5,4.03268]
[1750772855496,0.8248,2423.8,2423.6,0.82483]
[1750772855797,0.82484,2423.6,2423.5,3.2078]
[1750772856097,0.82495,2423.3,2423.2,3.2078]
[1750772856292,1.9166,2423.5,2423.2,4.03276]
[1750772856492,5.1648,2423.7,2423.2,3.2078]
[1750772856692,5.1648,2423.7,2423.3,2.82312]
[1750772856693,0.82489,2423.5,2423.3,2.82312]
[1750772856895,0.82485,2423.6,2423.4,0.82489]
[1750772857193,0.82495,2423.3,2423.2,3.2078]
[1750772860098,2.68455,2423.3,2423.2,3.2078]
[1750772860593,2.06249,2423.2,2422.8,1.63036731]
[1750772860795,0.82512,2422.8,2422.7,4.83816731]
[1750772861094,3.92209,2423.2,2422.7,5.66323731]
[1750772861301,0.82503,2422.8,2422.7,4.83816731]
[1750772861492,1.9262,2423.1,2422.7,5.66320731]
[1750772861798,1.9262,2423.1,2422.8,1.62996305]
[1750772861799,3.7858,2423.1,2422.8,1.62996305]
[1750772862097,0.825,2422.9,2422.8,1.62996305]
[1750772862291,18.6858,2423.1,2422.8,1.62996305]
[1750772862487,3.2078,2423.3,2422.8,1.62996305]
[1750772862696,0.82491,2423.2,2423.0,0.82495]
[1750772862994,1.8444,2423.4,2422.9,5.66851305]
[1750772863192,8.736,2423.6,2423.1,4.83776305]
[1750772863388,5.26988,2423.4,2423.1,1.62996305]
[1750772863697,0.82493,2423.1,2423.0,1.62996305]
[1750772863997,0.82493,2423.1,2423.0,2.45489305]
[1750772864200,0.82493,2423.1,2423.0,4.43099305]
[1750772864398,0.82493,2423.1,2423.0,3.60606305]
[1750772864694,3.2078,2423.4,2423.0,3.60606305]
[1750772864893,0.82491,2423.2,2423.0,3.60606305]
[1750772865291,0.82491,2423.2,2423.1,0.82493]
[1750772865696,0.82491,2423.2,2423.1,2.45489305]
[1750772865897,0.82491,2423.2,2423.1,1.62996305]
[1750772866501,0.82493,2423.1,2423.0,1.62996305]
[1750772866703,0.82497,2423.0,2422.9,1.62996305]
[1750772866899,0.825,2422.9,2422.8,15.85587097]
[1750772867294,2.06226,2423.2,2422.8,15.85587097]
[1750772867503,0.82497,2423.0,2422.9,1.63018597]
[1750772868796,0.82497,2423.1,2422.9,2.45518597]
[1750772869101,0.82497,2423.0,2422.9,1.63018597]
[1750772870796,0.825,2422.9,2422.8,1.63018597]
[1750772870997,0.825,2422.9,2422.8,2.45521597]
[1750772871200,0.825,2422.9,2422.8,1.63018597]
[1750772871498,0.82503,2422.9,2422.8,2.45480342]
[1750772871698,1.9593515,2423.2,2422.8,2.45480342]
[1750772871699,0.0637515,2423.2,2422.8,1.62977342]
[1750772871900,0.82493,2423.1,2423.0,4.03275]
[1750772872101,0.8886615,2423.2,2423.1,0.82493]
[1750772872297,0.82493,2423.1,2423.0,3.53977342]
[1750772872605,0.82497,2423.0,2422.9,2.45477342]
[1750772873204,0.82494,2423.1,2423.0,0.82496]
[1750772873505,0.8886815,2423.2,2423.1,0.82493]
[1750772874102,0.82493,2423.1,2423.0,1.62977342]
[1750772874501,0.82497,2423.0,2422.9,2.45474342]
[1750772875408,0.82497,2423.0,2422.9,1.62977342]
[1750772875809,0.82497,2423.0,2422.9,2.45477342]
[1750772877206,0.82497,2423.0,2422.9,1.62977342]
[1750772877402,0.0637515,2423.2,2422.9,1.62977342]
[1750772877605,2.79344,2423.7,2423.6,0.82476]
[1750772877805,5.26947,2423.9,2423.4,4.83829383]
[1750772878005,0.8248,2423.5,2423.4,5.89803]
[1750772878206,0.8248,2423.5,2423.4,7.52840771]
[1750772878401,3.99526,2423.8,2423.4,6.70357771]
[1750772878602,0.82479,2423.6,2423.5,0.82478]
[1750772878804,1.9335,2423.8,2423.7,0.82473]
[1750772879007,2.06067,2425.1,2423.8,4.12349]
[1750772879316,2.06067,2425.1,2424.4,1.62891734]
[1750772879317,5.97057,2425.1,2424.4,1.62891734]
[1750772879515,3.95985,2425.0,2424.5,2.45335734]
[1750772879809,3.95985,2425.0,2424.5,0.82445]
[1750772880003,3.95985,2425.0,2424.4,1.62891734]
[1750772880204,0.8244,2424.7,2424.5,0.82444]
[1750772880604,1.8991,2425.0,2424.4,8.46843672]
[1750772880806,3.9099,2425.1,2424.6,2.06106]
[1750772881005,3.9099,2425.1,2425.0,0.82429]
[1750772881199,0.82425,2425.1,2424.9,0.82431]
[1750772881410,3.2078,2425.2,2424.8,3.47491734]
[1750772881596,3.2078,2425.2,2425.1,0.82425]
[1750772881799,0.82416,2425.4,2425.2,0.82421]
[1750772882113,0.82414,2425.5,2425.2,0.82421]
[1750772882308,3.2078,2425.6,2425.0,5.0538]
[1750772882611,0.82429,2425.0,2424.7,16.24308734]
[1750772882815,0.82434,2424.9,2424.7,6.68271734]
[1750772883004,5.26831,2425.3,2424.7,6.68271734]
[1750772883205,0.82435,2424.9,2424.7,3.2078]
[1750772883612,0.82435,2424.8,2424.7,3.2078]
[1750772883921,1.9794,2425.1,2424.7,3.2078]
[1750772884210,8.734,2425.4,2424.7,3.2078]
[1750772884406,2.06047,2425.3,2424.8,1.9349]
[1750772884606,0.82435,2424.8,2424.7,3.2078]
[1750772885016,0.82446,2424.5,2424.3,4.83671734]
[1750772885313,0.82446,2424.5,2424.1,3.56781734]
[1750772885510,0.82444,2424.6,2424.4,0.82448]
[1750772885711,0.0637515,2424.7,2424.3,3.2078]
[1750772885910,0.8881415,2424.7,2424.5,0.82443]
[1750772886110,0.0637515,2424.7,2424.4,1.9349]
[1750772886313,0.82444,2424.6,2424.4,2.75939]
[1750772886615,0.8881515,2424.7,2424.5,0.82446]
[1750772886910,0.0637515,2424.7,2424.6,4.03222]
[1750772887216,0.8881415,2424.7,2424.6,3.2078]
[1750772887418,0.8881415,2424.7,2424.6,5.0149]
[1750772887715,0.0637515,2424.7,2424.6,5.83932]
[1750772888107,0.8881415,2424.7,2424.6,5.83932]
[1750772888312,0.8881415,2424.7,2424.6,5.0149]
[1750772888706,0.0637515,2424.7,2424.6,5.83932]
[1750772889209,0.0637515,2424.7,2424.6,10.83932]
[1750772889415,0.0637515,2424.7,2424.6,19.57232]
[1750772889913,1.8866,2425.5,2425.0,2.0607]
[1750772890114,0.82418,2425.4,2425.3,0.82417]
[1750772890316,2.71073,2425.5,2425.4,0.82415]
[1750772890514,0.82415,2425.4,2425.3,0.82416]
[1750772890715,0.82414,2425.5,2425.4,0.82414]
[1750772890914,0.82415,2425.4,2425.3,2.61916]
[1750772891114,0.82415,2425.4,2425.3,1.795]
[1750772891308,0.82418,2425.3,2425.2,3.2078]
[1750772892915,2.06031,2425.5,2425.0,10.6855]
[1750772892916,0.82425,2425.1,2425.0,11.9398]
[1750772893112,0.82425,2425.1,2425.0,3.2078]
[1750772893618,0.82425,2425.1,2425.0,4.03209]
[1750772893920,2.06006,2425.8,2425.0,3.2078]
[1750772894117,0.82415,2425.5,2425.4,3.2078]
[1750772894716,0.82411,2425.6,2425.5,0.82412]
[1750772894915,0.82411,2425.6,2425.4,3.2078]
[1750772894916,0.82412,2425.5,2425.4,3.2078]
[1750772896223,0.82412,2425.5,2425.4,4.03195]
[1750772896926,1.8866,2425.9,2425.4,9.03893864]
[1750772897220,0.82411,2425.6,2425.5,0.82411]
[1750772897521,0.82422,2425.2,2425.1,4.03205]
[1750772897726,3.2078,2425.7,2425.1,4.03205]
[1750772897727,1.8723,2425.7,2425.1,3.2078]
[1750772898022,0.82414,2425.5,2425.4,0.82415]
[1750772898219,3.93244,2425.7,2425.1,5.98012]
[1750772898422,0.82422,2425.2,2425.1,3.2078]
[1750772899317,4.68052,2425.2,2425.1,3.2078]
[1750772899717,4.7442715,2425.2,2425.1,3.2078]
[1750772899910,4.7442715,2425.2,2425.1,4.03205]
[1750772900116,0.0637515,2425.2,2425.1,4.03205]
[1750772902514,0.0637515,2425.2,2425.1,9.86318864]
[1750772903815,0.0637515,2425.2,2425.1,3.2078]
[1750772904018,0.0637515,2425.2,2425.1,4.03205]
[1750772905214,2.06004,2425.9,2425.1,3.2078]
[1750772905522,0.82417,2425.4,2425.3,0.82413]
[1750772905924,0.82412,2425.6,2425.5,0.82409]
[1750772906433,0.82405,2425.8,2425.7,0.82401]
[1750772906621,0.82409,2425.7,2425.6,0.82406]
[1750772906824,0.82418,2425.4,2425.3,0.82415]
[1750772907128,0.82422,2425.2,2425.1,3.2078]
[1750772907323,0.82422,2425.2,2425.1,4.03205]
[1750772907924,0.82422,2425.2,2425.1,3.2078]
[1750772908226,0.82429,2425.0,2424.9,2.45321734]
[1750772908527,1.8339,2425.2,2424.9,2.45321734]
[1750772908528,1.8339,2425.2,2424.9,1.62891734]
[1750772908733,2.65813,2425.2,2425.1,2.44709792]
[1750772909429,0.82414,2425.5,2425.4,0.8241]
[1750772909628,0.82414,2425.5,2425.4,4.0319]
[1750772909829,0.82418,2425.3,2425.2,1.62293182]
[1750772910122,1.9028,2425.4,2425.1,2.44717182]
[1750772910430,0.82422,2425.2,2425.1,2.44717182]
[1750772910820,0.82422,2425.2,2425.1,1.62293182]
[1750772911014,0.82422,2425.2,2425.1,2.44718182]
[1750772911220,0.82422,2425.2,2425.1,1.62293182]
[1750772911623,0.82425,2425.1,2425.0,1.62293182]
[1750772911828,6.54755,2425.1,2425.0,1.62293182]
[1750772912026,0.82429,2425.0,2424.9,1.62293182]
[1750772912229,4.60376,2425.1,2425.0,0.82429]
[1750772912428,4.60376,2425.1,2425.0,2.44722182]
[1750772913131,4.60376,2425.1,2425.0,1.62293182]
[1750772913929,0.82429,2425.0,2424.9,1.62293182]
[1750772914321,2.65879,2425.0,2424.9,1.62293182]
[1750772914524,2.65879,2425.0,2424.9,2.44725182]
[1750772915027,2.65879,2425.0,2424.9,0.82432]
[1750772915930,0.82432,2424.9,2424.8,6.47550601]
[1750772916131,0.82432,2424.9,2424.8,4.03213]
[1750772917223,0.8244,2424.8,2424.7,0.82437]
[1750772917419,3.7795,2425.1,2425.0,0.82429]
[1750772917623,4.60375,2425.1,2425.0,1.62561789]
[1750772917926,2.06029,2425.6,2425.0,2.44990789]
[1750772918126,0.82418,2425.3,2425.1,8.26956547]
[1750772918430,0.82418,2425.3,2425.2,0.82422]
[1750772919027,0.82417,2425.4,2425.3,0.82414]
[1750772919228,0.82417,2425.4,2425.3,2.45066013]
[1750772919730,0.82415,2425.5,2425.4,0.82412]
[1750772919925,0.82415,2425.5,2425.4,2.45050018]
[1750772920232,2.06025,2425.6,2425.2,3.26262683]
[1750772920530,0.82414,2425.5,2425.4,1.62644263]
[1750772920718,1.9475,2425.6,2425.4,1.62644263]
[1750772920924,0.82412,2425.5,2425.4,2.45057263]
[1750772921328,0.82411,2425.6,2425.5,0.82409]
[1750772921735,0.82411,2425.6,2425.5,2.45053263]
[1750772922031,0.82407,2425.7,2425.6,0.82406]
[1750772922435,0.82408,2425.6,2425.5,2.45053263]
[1750772923033,0.82407,2425.7,2425.6,0.82405]
[1750772923325,2.72804,2425.8,2425.7,0.82405]
[1750772923527,2.72804,2425.8,2425.7,2.45049263]
[1750772923733,4.03174,2426.1,2426.0,0.82395]
[1750772924535,4.03174,2426.1,2425.7,4.49854683]
[1750772924536,0.82398,2426.0,2425.9,2.45040263]
[1750772925226,0.82398,2426.0,2425.9,0.82396]
[1750772925931,0.82398,2425.9,2425.8,1.62644263]
[1750772926137,0.82401,2425.8,2425.7,1.62644263]
[1750772926433,0.82408,2425.6,2425.5,1.62644263]
[1750772926625,0.82408,2425.6,2425.5,0.82412]
[1750772926934,0.82406,2425.7,2425.6,0.82406]
[1750772927133,0.82404,2425.8,2425.7,0.82403]
[1750772927330,0.82404,2425.8,2425.7,2.4489238]
[1750772928132,3.2078,2427.0,2425.7,45.22183469]
[1750772928326,0.82375,2426.7,2426.6,0.82372]
[1750772928636,0.82375,2426.7,2426.6,2.44674153]
[1750772929135,0.82375,2426.7,2426.6,0.82372]
[1750772929332,3.8385,2426.9,2426.5,1.62302153]
[1750772929837,0.8237,2426.8,2426.7,0.8237]
[1750772930031,0.82374,2426.6,2426.5,2.44678153]
[1750772930230,5.26719,2426.6,2426.3,1.62302153]
[1750772930534,0.82386,2426.3,2426.2,2.44688153]
[1750772930829,0.82395,2426.0,2425.9,1.62302153]
[1750772931039,0.82422,2425.2,2425.1,2.4345323]
[1750772931229,0.82422,2425.2,2424.9,0.8243]
[1750772931230,0.82426,2425.1,2424.9,0.8243]
[1750772931429,0.82426,2425.1,2424.9,0.82432]
[1750772931735,0.82427,2425.1,2424.9,0.82432]
[1750772931933,0.82429,2425.0,2424.9,0.82432]
[1750772932134,0.82432,2424.9,2424.8,3.2588623]
[1750772932335,0.82435,2424.8,2424.7,2.4345323]
[1750772932532,0.82452,2424.3,2424.2,3.2078]
[1750772932730,8.506,2424.4,2424.0,5.83113864]
[1750772932930,47.482,2425.2,2424.3,5.83113864]
[1750772932931,3.6614,2424.6,2424.3,5.83113864]
[1750772933129,0.82446,2424.5,2424.4,3.2078]
[1750772933423,3.6614,2424.6,2424.4,3.2078]
[1750772933624,4.48584,2424.6,2424.4,4.03228]
[1750772933825,3.6614,2424.6,2424.5,0.82446]
[1750772934029,0.82446,2424.5,2424.4,4.03228]
[1750772934328,8.506,2424.8,2424.4,4.03228]
[1750772934329,0.82443,2424.6,2424.4,4.03228]
[1750772934528,0.82446,2424.5,2424.4,3.2078]
[1750772935139,0.82444,2424.6,2424.4,0.82447]
[1750772935439,8.506,2424.8,2424.3,0.8245]
[1750772935635,0.82448,2424.5,2424.4,0.82449]
[1750772935833,0.82448,2424.5,2424.3,0.82451]
[1750772936035,0.82454,2424.3,2424.1,7.5014323]
[1750772936338,0.82469,2423.8,2423.7,2.4345323]
[1750772936526,0.82473,2423.7,2423.6,5.6423323]
[1750772936731,5.5669,2424.2,2423.7,0.82471]
[1750772936933,0.8247,2423.8,2423.6,5.83613]
[1750772937230,5.5669,2424.2,2423.6,5.0114]
[1750772937231,0.82468,2423.9,2423.6,5.0114]
[1750772937435,3.6132,2424.2,2423.6,11.86250534]
[1750772937639,0.8246,2424.1,2424.0,0.82461]
[1750772937834,0.8246,2424.1,2424.0,2.62821]
[1750772938141,0.82458,2424.2,2424.0,2.62821]
[1750772938342,0.82459,2424.1,2424.0,2.62821]
[1750772938636,0.82458,2424.2,2424.0,2.62821]
[1750772938842,0.82463,2424.0,2423.9,4.03244]
[1750772939232,0.82463,2424.0,2423.9,3.2078]
[1750772939743,2.06143,2424.2,2423.7,0.82471]
[1750772939942,0.82471,2423.8,2423.7,0.82471]
[1750772940341,3.90923,2424.2,2423.6,3.2078]
[1750772940342,0.82469,2423.9,2423.8,0.82469]
[1750772940749,0.8247,2423.8,2423.7,0.82471]
[1750772940937,0.82457,2424.2,2424.1,0.82457]
[1750772941137,0.82457,2424.2,2424.1,3.2078]
[1750772941438,0.82466,2423.9,2423.8,5.98456]
[1750772941834,0.82476,2423.6,2423.5,3.2078]
[1750772942031,2.06191,2423.6,2423.0,0.82496]
[1750772942243,10.4012,2423.7,2423.2,3.2078]
[1750772942439,12.46306,2423.7,2423.1,9.63232534]
[1750772942639,2.06191,2423.6,2423.1,9.63232534]
[1750772942839,0.8249,2423.2,2423.1,1.9563]
[1750772943035,0.82497,2423.0,2422.9,3.2078]
[1750772943542,0.82494,2423.1,2422.9,3.2078]
[1750772943843,2.06237,2423.1,2422.6,3.2078]
[1750772944146,0.8252,2422.3,2422.2,3.2078]
[1750772944848,0.82519,2422.4,2422.2,4.03302]
[1750772945047,0.8252,2422.3,2422.2,3.2078]
[1750772945846,0.8252,2422.3,2422.2,4.03304]
[1750772946050,0.8252,2422.3,2422.2,4.03302]
[1750772946241,8.511,2422.6,2422.2,3.2078]
[1750772946441,0.8252,2422.3,2422.2,4.03303]
[1750772946636,8.513,2422.5,2422.2,4.03303]
[1750772946637,0.82516,2422.5,2422.3,0.82518]
[1750772946837,11.7208,2423.6,2422.6,0.8251]
[1750772947043,0.82505,2422.8,2422.5,3.2078]
[1750772947243,10.2915,2423.2,2422.6,2.06276]
[1750772947444,0.82496,2423.1,2423.0,0.82496]
[1750772947649,2.06242,2423.0,2422.2,3.2078]
[1750772947849,3.96242,2423.0,2422.2,3.2078]
[1750772948049,0.82509,2422.7,2422.6,0.82509]
[1750772948237,0.82512,2422.6,2422.5,0.82512]
[1750772948441,1.9,2423.0,2422.6,0.8251]
[1750772948640,2.06251,2422.9,2422.5,0.82513]
[1750772948842,0.82506,2422.8,2422.7,0.82507]
[1750772949041,1.7785,2423.2,2422.6,2.06276]
[1750772949349,0.82507,2422.8,2422.7,0.82506]
[1750772949546,0.82507,2422.7,2422.6,4.03289]
[1750772949947,0.82507,2422.7,2422.6,3.2078]
[1750772950244,0.82518,2422.4,2422.3,0.82518]
[1750772950451,0.8252,2422.3,2422.2,4.03301]
[1750772950653,0.82519,2422.4,2422.3,0.82519]
[1750772951046,1.7729,2422.6,2422.3,0.82519]
[1750772951244,0.82511,2422.6,2422.5,0.82514]
[1750772951547,8.515,2422.8,2422.5,3.2078]
[1750772951743,0.82509,2422.7,2422.6,0.82507]
[1750772952441,0.82506,2422.8,2422.7,0.82505]
[1750772952751,0.8251,2422.6,2422.5,4.0329]
[1750772953148,9.34004,2422.9,2422.8,0.82503]
[1750772953754,0.82497,2423.1,2423.0,0.82495]
[1750772953943,0.82497,2423.1,2422.7,0.82505]
[1750772953944,0.82507,2422.8,2422.7,0.82505]
[1750772954148,0.8251,2422.6,2422.5,4.0078]
[1750772954554,2.06243,2423.0,2422.5,4.0078]
[1750772954754,0.82508,2422.7,2422.6,0.82508]
[1750772954954,0.8251,2422.6,2422.5,4.83291]
[1750772955151,0.8251,2422.6,2422.5,0.8]
[1750772955349,0.82524,2422.2,2422.1,3.2078]
[1750772955652,0.82534,2422.0,2421.9,0.82532]
[1750772955854,2.06305,2422.3,2421.8,3.2078]
[1750772956053,2.06312,2422.2,2421.8,3.2078]
[1750772956258,0.82531,2422.1,2421.8,3.2078]
[1750772956447,2.0631,2422.2,2421.8,5.0423]
[1750772956751,0.82534,2421.9,2421.8,5.86767]
[1750772956955,0.82537,2421.8,2421.7,0.0637515]
[1750772957155,6.52697,2421.8,2421.7,0.0637515]
[1750772957753,0.82555,2421.3,2421.2,3.2078]
[1750772958359,0.82555,2421.3,2421.2,4.03338]
[1750772958660,0.82555,2421.3,2421.2,3.2078]
[1750772959360,0.82577,2420.7,2420.4,3.2078]
[1750772959561,0.82573,2420.8,2420.7,0.82573]
[1750772959858,2.06404,2421.1,2420.6,0.82576]
[1750772960056,0.82575,2420.7,2420.6,0.82577]
[1750772960253,3.94088,2421.1,2420.5,2.60661]
[1750772960254,0.82578,2420.6,2420.5,2.60661]
[1750772960661,12.26453,2421.0,2420.4,3.2078]
[1750772960662,10.2004,2421.0,2420.4,3.2078]
[1750772960862,0.82569,2420.9,2420.8,0.8257]
[1750772961066,3.7005,2421.1,2421.0,0.82563]
[1750772961067,0.82563,2421.1,2421.0,0.82563]
[1750772961256,0.82563,2421.1,2420.7,3.2078]
[1750772961257,3.2078,2421.5,2420.8,1.7808]
[1750772961457,0.82564,2421.1,2421.0,0.82563]
[1750772961763,0.82559,2421.2,2421.1,0.82559]
[1750772962064,8.42,2421.6,2421.0,5.27193]
[1750772962258,8.42,2421.6,2421.4,3.2078]
[1750772962457,0.82548,2421.5,2421.4,3.2078]
[1750772962655,8.42,2421.6,2421.2,0.82556]
[1750772962656,0.82557,2421.3,2421.2,0.82556]
[1750772962963,0.82551,2421.4,2421.3,0.82551]
[1750772963170,0.82558,2421.2,2421.1,4.0334]
[1750772963458,0.82561,2421.1,2421.0,0.82563]
[1750772963659,0.82567,2421.0,2420.9,0.82566]
[1750772963858,0.82564,2421.1,2421.0,0.82565]
[1750772964063,2.06387,2421.3,2420.8,3.2078]
[1750772964259,0.82578,2420.6,2420.5,3.2078]
[1750772964459,2.06405,2421.1,2420.3,0.82587]
[1750772964460,0.82587,2420.4,2420.3,0.82587]
[1750772965154,0.82584,2420.5,2420.2,3.2078]
[1750772965363,1.8013,2420.7,2420.2,3.2078]
[1750772965570,0.82587,2420.4,2420.3,0.82586]
[1750772965863,0.82584,2420.5,2420.4,0.82583]
[1750772966059,0.8258,2420.6,2420.5,0.82579]
[1750772966261,12.88707,2420.7,2420.6,0.82578]
[1750772966566,11.04707,2420.7,2420.6,0.82578]
[1750772966969,0.8258,2420.6,2420.5,0.82579]
[1750772967173,0.82584,2420.5,2420.4,0.82582]
[1750772967557,12.2857,2420.7,2420.2,3.2078]
[1750772967868,0.82589,2420.3,2420.2,4.03369]
[1750772968071,2.06483,2420.2,2419.9,3.2078]
[1750772968272,0.82599,2420.0,2419.9,3.2078]
[1750772969362,0.82599,2420.0,2419.9,4.83382]
[1750772969562,0.82599,2420.0,2419.9,4.0078]
[1750772969963,0.82599,2420.0,2419.9,0.8]
[1750772970169,0.82599,2420.0,2419.9,4.0078]
[1750772970371,0.82599,2420.0,2419.9,4.83382]
[1750772970568,0.82597,2420.1,2420.0,0.82599]
[1750772970867,0.82588,2420.4,2420.3,0.82587]
[1750772971063,8.423,2420.5,2420.0,1.804]
[1750772971266,0.82595,2420.2,2420.1,0.82594]
[1750772971467,0.82595,2420.1,2420.0,2.62997]
[1750772971866,0.82594,2420.2,2420.1,0.82595]
[1750772972068,10.2943,2420.5,2419.9,4.0078]
[1750772972069,0.82596,2420.1,2420.0,0.82597]
[1750772972575,0.82599,2420.0,2419.9,4.8338]
[1750772972770,0.82599,2420.0,2419.9,4.0078]
[1750772973069,0.82599,2420.0,2419.9,0.8]
[1750772973262,4.03379,2420.0,2419.9,0.8]
[1750772973461,0.82619,2419.4,2419.3,3.2078]
[1750772973664,0.82626,2419.3,2419.2,0.82625]
[1750772973869,2.06552,2419.4,2418.8,1.9224]
[1750772974060,3.2078,2419.3,2418.2,3.2078]
[1750772974265,0.82652,2418.5,2418.4,0.82651]
[1750772974472,0.82654,2418.4,2418.3,2.64175]
[1750772974767,2.06592,2418.9,2418.4,0.82654]
[1750772974959,2.06592,2418.9,2418.6,0.0637515]
[1750772975163,0.82643,2418.7,2418.6,0.0637515]
[1750772975368,0.82643,2418.8,2418.6,0.0637515]
[1750772975572,8.424,2418.9,2418.6,0.8901915]
[1750772975573,0.82643,2418.7,2418.6,0.8901915]
[1750772975775,0.82643,2418.7,2418.6,0.0637515]
[1750772975974,0.82643,2418.7,2418.6,0.8902215]
[1750772976468,0.82641,2418.8,2418.7,0.82642]
[1750772976662,0.82643,2418.7,2418.6,0.0637515]
[1750772979368,0.82667,2418.0,2417.9,3.2078]
[1750772979570,8.428,2418.4,2417.7,1.9424]
[1750772979773,2.06655,2418.2,2417.7,1.9424]
[1750772980071,0.82667,2418.0,2417.9,0.82668]
[1750772980371,0.82662,2418.2,2418.1,0.82662]
[1750772980577,0.82659,2418.3,2418.2,0.82659]
[1750772980770,0.82663,2418.2,2418.1,0.82663]
[1750772980973,0.82658,2418.3,2418.2,0.82658]
[1750772981171,0.82664,2418.1,2418.0,3.2078]
[1750772982176,0.82664,2418.1,2418.0,4.03446]
[1750772982366,0.82664,2418.1,2418.0,3.2078]
[1750772982568,0.82674,2417.8,2417.7,4.03455]
[1750772982764,0.82673,2417.9,2417.8,0.82673]
[1750772983277,0.82673,2417.9,2417.7,5.0591]
[1750772983468,1.938,2418.5,2417.8,0.82673]
[1750772983776,0.82666,2418.1,2418.0,4.03446]
[1750772984073,0.82659,2418.3,2418.1,0.82664]
[1750772984270,0.8266,2418.2,2418.1,0.82664]
[1750772984470,0.82659,2418.3,2418.2,0.8266]
[1750772984774,0.82661,2418.2,2418.1,0.82661]
[1750772984973,12.2739,2418.5,2418.0,3.2078]
[1750772985173,0.82659,2418.3,2418.2,0.82659]
[1750772985375,0.82662,2418.2,2418.1,0.82662]
[1750772985672,12.2739,2418.5,2418.0,3.2078]
[1750772985878,0.82659,2418.3,2418.2,0.8266]
[1750772986076,0.82663,2418.2,2418.1,0.82663]
[1750772986378,3.8449,2418.5,2418.0,3.2078]
[1750772986379,0.8266,2418.3,2418.2,0.82659]
[1750772986674,0.82662,2418.2,2418.1,0.8266]
[1750772986985,0.82671,2417.9,2417.8,0.82674]
[1750772987167,0.82674,2417.8,2417.7,3.2078]
[1750772987774,0.82674,2417.8,2417.7,4.03457]
[1750772987970,0.82674,2417.8,2417.7,3.2078]
[1750772989184,2.06635,2418.4,2417.7,3.2078]
[1750772989376,0.82667,2418.0,2417.9,3.2078]
[1750772989881,0.82677,2417.7,2417.6,4.03458]
[1750772990180,0.82667,2418.1,2418.0,0.82664]
[1750772990681,0.82663,2418.2,2418.1,0.8266]
[1750772990874,0.82664,2418.1,2418.0,2.71045]
[1750772991281,0.82663,2418.2,2418.1,0.8266]
[1750772991581,0.82667,2418.0,2417.9,4.03451]
[1750772992280,0.82667,2418.0,2417.9,4.03448]
[1750772992483,0.8266,2418.3,2418.2,0.82655]
[1750772992672,0.82654,2418.5,2418.4,0.82651]
[1750772992980,0.82649,2418.6,2418.5,0.82645]
[1750772993188,0.82647,2418.6,2418.5,4.03428]
[1750772993483,0.82647,2418.6,2418.5,3.2078]
[1750772993674,2.06621,2418.6,2418.2,3.2078]
[1750772993871,8.35,2418.5,2418.2,3.2078]
[1750772994074,0.82657,2418.3,2418.2,3.2078]
[1750772994283,0.82657,2418.3,2418.2,4.0344]
[1750772995072,0.82654,2418.4,2418.3,0.82654]
[1750772995386,0.82657,2418.4,2418.3,0.82655]
[1750772995585,10.4161,2418.7,2418.3,1.9128]
[1750772995784,0.82654,2418.5,2418.4,0.82651]
[1750772996386,0.82654,2418.5,2418.4,0.82652]
[1750772996881,0.82654,2418.5,2418.4,2.68152]
[1750772997185,0.82654,2418.5,2418.4,1.855]
[1750772997489,0.82654,2418.5,2418.4,2.68154]
[1750772997874,0.82649,2418.6,2418.5,0.82646]
[1750772998082,0.82649,2418.6,2418.5,5.97426]
[1750772998377,0.82646,2418.7,2418.6,0.82643]
[1750772998585,47.625,2419.3,2418.6,4.00617]
[1750772998586,2.06558,2419.3,2418.6,4.00617]
[1750772998783,2.06569,2419.2,2418.7,3.2078]
[1750772999085,0.82636,2418.9,2418.8,2.76638]
[1750772999381,0.82632,2419.1,2419.0,0.82629]
[1750772999579,0.82636,2419.0,2418.9,0.82634]
[1750772999776,3.6903,2419.5,2418.9,0.82634]
[1750772999973,0.82629,2419.2,2419.1,4.03407]
[1750773000382,0.82629,2419.2,2419.1,3.2078]
[1750773000577,0.82636,2418.9,2418.8,3.2078]
[1750773000777,2.06558,2419.3,2418.8,3.2078]
[1750773000974,0.82636,2418.9,2418.8,3.2078]
[1750773001780,0.82636,2418.9,2418.8,4.0342]
[1750773001985,0.82636,2418.9,2418.8,3.2078]
[1750773002189,0.82636,2418.9,2418.8,4.0342]
[1750773002391,0.82636,2418.9,2418.8,5.8251]
[1750773002584,0.82636,2418.9,2418.8,7.44070915]
[1750773002786,0.82636,2418.9,2418.8,6.61430915]
[1750773002986,2.06555,2419.4,2418.8,6.61430915]